Workbook

Sheet Istruzioni per l'uso

Sheet Prevalutazione del rischio
F9: PUNTEGGIO
F10: SI | G10: 1
F11: NO | G11: 0
F13: PROFILO DI RISCHIO | G13: Limite inferiore | H13: Limite superiore
F14: SOLVIBILITA' | G14: 0 | H14: =1/7 -> 0.1428571429
F15: VULNERABILITA' | G15: =H14 -> 0.1428571429 | H15: =H14+1/7 -> 0.2857142857
F16: VULNERABILITA' ELEVATA | G16: 0.2857142857 | H16: 0.4285714286
F17: RISCHIO | G17: 0.4285714286 | H17: 0.5714285714
F18: RISCHIO ELEVATO | G18: 0.5714285714 | H18: 0.7142857143
F19: RISCHIO MOLTO ELEVATO | G19: 0.7142857143 | H19: 0.8571428571
F20: RISCHIO MASSIMO | G20: 0.8571428571 | H20: 1
A22: SEZIONI | B22: PESO SEZIONI | D22: N° | E22: Quesito | F22: RISPOSTA | G22: PESO | H22: PUNTEGGIO
A23: Anomalie nei rapporti verso controparti commerciali | B23: 0.1 | D23: 1.1 | E23: Ricevute ed altri avvisi di pagamento non onorate alla scadenza | G23: 0.1 | H23: =IF(F23="","Inserire risposta!",IF(F23=$F$10,$G$10*G23*$B$23,$G$11)) -> Inserire risposta!
C24: =IF(OR(AND(F24="SI",OR(F23="SI",F25="SI",F26="SI",F27="SI",F28="SI")),AND(F24="SI",OR(F35="SI",F47="SI",F52="SI",F72="SI",F80="SI")))=TRUE,1,"") ->  | D24: 1.2 | E24: Ritardi nei pagamenti concordati superiori a 90 giorni; | G24: 0.1 | H24: =IF(F24="","Inserire risposta!",IF(F24=$F$10,$G$10*G24*$B$23,$G$11)) -> Inserire risposta!
D25: 1.3 | E25: Pagamenti parziali rispetto al prezzo concordato; | G25: 0.1 | H25: =IF(F25="","Inserire risposta!",IF(F25=$F$10,$G$10*G25*$B$23,$G$11)) -> Inserire risposta!
D26: 1.4 | E26: Richieste di riscadenzamento nei pagamenti concordati; | G26: 0.1 | H26: Inserire risposta!
D27: 1.5 | E27: Compensazioni, abbuoni derivanti da resi, controversie derivanti dalla quantità del prodotto o da ritardi nei termini di consegna anomali rispetto la media del settore; | G27: 0.1 | H27: Inserire risposta!
D28: 1.6 | E28: Sconti o promozioni di ogni tipo in misura superiore al 50% del prezzo di listino o comunemente praticato, in ogni caso considerati anomali in rapporto alle comuni condizioni d’uso di piazza. | G28: 0.1 | H28: Inserire risposta!
D29: 1.7 | E29: Sensibile aumento della dilazione di pagamento concessa ai clienti; | G29: 0.1 | H29: =IF(F29="","Inserire risposta!",IF(F29=$F$10,$G$10*G29*$B$23,$G$11)) -> Inserire risposta!
D30: 1.8 | E30: Sensibile diminuzione della dilazione di pagamento ottenuta dai fornitori. | G30: 0.1 | H30: Inserire risposta!
C31: =IF(F31="SI",1,"") ->  | D31: 1.9 | E31: Esistenza di procedure concorsuali a carico di clienti chiave; | G31: 0.1 | H31: Inserire risposta!
C32: =IF(F32="SI",1,"") ->  | D32: 1.10 | E32: Esistenza di procedure concorsuali a carico di fornitori chiave. | G32: 0.1 | H32: Inserire risposta!
G33: Subtotale | H33: =SUM(H23:H32) -> 0
A34: Anomalie nei rapporti con banche ed altri soggetti finanziari | B34: 0.35 | D34: 2.1 | E34: Significativo e concordante(1) deterioramento dei rating interni assegnati dalle banche (downgrade); | G34: =1/12 -> 0.08333333333 | H34: =IF(F34="","Inserire risposta!",IF(F34=$F$10,$G$10*G34*$B$34,$G$11)) -> Inserire risposta!
C35: =IF(OR(AND(F35="SI",OR(F34="SI",F36="SI",F37="SI",F38="SI",F39="SI",F40="SI",F41="SI",F42="SI",F43="SI",F44="SI",F45="SI",G46="SI")),AND(F35="SI",OR(F24="SI",F47="SI",F52="SI",F72="SI",F80="SI")))=TRUE,1,"") ->  | D35: 2.2 | E35: Sconfini rilevanti(2) e ripetuti in Centrale dei Rischi (avvenuti nell’arco degli ultimi 12 mesi); | G35: =1/12 -> 0.08333333333 | H35: Inserire risposta!
D36: 2.3 | E36: Anomalo aumento delle richieste di garanzie su beni aziendali o di soggetti terzi; | G36: 0.08333333333 | H36: Inserire risposta!
D37: 2.4 | E37: Anomalo aumento delle segnalazioni in C.R. di insoluti su anticipo crediti; | G37: 0.08333333333 | H37: Inserire risposta!
D38: 2.5 | E38: Anomala richieste di fido oltre gli ordinari fabbisogni di cassa attesi. In particolare, ripetute richieste di temporanee disponibilità di cassa per far fronte a esigenze di tesoreria non giustificate dalla stagionalità; | G38: 0.08333333333 | H38: Inserire risposta!
D39: 2.6 | E39: Anomala e continuativa crescita dei fidi utilizzati, con particolare riferimento al sovra-utilizzo dei fidi di smobilizzo crediti commerciali (fidi autoliquidanti); | G39: 0.08333333333 | H39: Inserire risposta!
D40: 2.7 | E40: Rientri nelle linee di credito per cassa o per firma che non si inseriscono in una rimodulazione complessiva della struttura degli affidamenti (3); | G40: 0.08333333333 | H40: Inserire risposta!
D41: 2.8 | E41: Richiesta di finanziamenti straordinari aventi per scopo consolidamento di debiti a breve termine e riscadenzamenti di prestiti persistenti non correlate a manovre finanziarie di ottimizzazione della struttura finanziaria ovvero, anche riduzioni di linee di fido non utilizzate, se non nell’ambito di una rimodulazione complessiva della struttura degli affidamenti (4); | G41: 0.08333333333 | H41: Inserire risposta!
D42: 2.9 | E42: Mancato pagamento di rimborsi di prestiti obbligazionari o di altri impegni in linea interessi o capitale ovvero riscadenzamenti e dilazioni su prestiti obbligazionari in essere; | G42: 0.08333333333 | H42: Inserire risposta!
D43: 2.10 | E43: Progressivo peggioramento delle condizioni negoziali praticate sulle linee di credito, sintomatico(5); | G43: 0.08333333333 | H43: Inserire risposta!
D44: 2.11 | E44: Progressivo peggioramento del rating bancario assegnato alla capogruppo o ad altre società del gruppo economico di appartenenza il cui peso specifico nell’area di consolidamento sia ritenuto rilevante(6); | G44: 0.08333333333 | H44: Inserire risposta!
D45: 2.12 | E45: Mancato rispetto delle condizioni negoziali correlate alla concessione di linee di fido o a sue condizioni di utilizzo (covenant)(7). | G45: 0.08333333333 | H45: Inserire risposta!
G46: Subtotale | H46: =SUM(H34:H45) -> 0
A47: Anomalie contrattuali nei confronti di controparti negoziali | B47: 0.05 | C47: =IF(OR(AND(F47="SI",OR(F48="SI",F49="SI",)),AND(F47="SI",OR(F24="SI",F35="SI",F52="SI",F72="SI",F80="SI")))=TRUE,1,"") ->  | D47: 3.1 | E47: Mancato rispetto di clausole contrattuali che comportano per la società impegni pecuniari di rilevante entità; | G47: =1/4 -> 0.25 | H47: =IF(F47="","Inserire risposta!",IF(F47=$F$10,$G$10*G47*$B$47,$G$11)) -> Inserire risposta!
D48: 3.2 | E48: Mancato rilascio di garanzie commerciali a garanzia di impegni aziendali “di fare” (Bid Bond, Advance Payment Bond, Performance Bond, ecc.); | G48: =1/4 -> 0.25 | H48: =IF(F48="","Inserire risposta!",IF(F48=$F$10,$G$10*G48*$B$47,$G$11)) -> Inserire risposta!
D49: 3.3 | E49: Mancato rilascio garanzie a fronte di prestazioni “di dare” (Payment Bonds, Retention Money Bond ecc.). | G49: 0.25 | H49: =IF(F49="","Inserire risposta!",IF(F49=$F$10,$G$10*G49*$B$47,$G$11)) -> Inserire risposta!
D50: 3.4 | E50: Presenza di contenziosi rilevanti con controparti commerciali | G50: 0.25 | H50: =IF(F50="","Inserire risposta!",IF(F50=$F$10,$G$10*G50*$B$47,$G$11)) -> Inserire risposta!
G51: Subtotale | H51: =SUM(H47:H50) -> 0
A52: Anomalie contabili e di bilancio | B52: 0.35 | C52: =IF(OR(AND(F52="SI",OR(F53="SI",F54="SI",F55="SI",F56="SI",F57="SI",F58="SI",F59="SI",F60="SI",F61="SI",F62="SI",F63="SI")),AND(F52="SI",OR(F24="SI",F35="SI",F47="SI",F72="SI",F80="SI")))=TRUE,1,"") ->  | D52: 4.1 | E52: Riduzione superiore al 50% del patrimonio netto per effetto di perdite d’esercizio; | G52: =1/18 -> 0.05555555556 | H52: =IF(F52="","Inserire risposta!",IF(F52=$F$10,$G$10*G52*$B$52,$G$11)) -> Inserire risposta!
D53: 4.2. | E53: Riduzione del capitale tangibile(8) rettificato inferiore a zero; | G53: =1/18 -> 0.05555555556 | H53: Inserire risposta!
D54: 4.3. | E54: Drastica riduzione dei valori dell’attivo per perdite durevoli di valore o delle garanzie rilasciate a terzi a fronte di impegni finanziari rilevanti; | G54: 0.05555555556 | H54: Inserire risposta!
D55: 4.4. | E55: Drastica riduzione del fatturato per un ammontare superiore al 10% ovvero superiore al 30% del margine di sicurezza (ricavi di vendita – BEP); | G55: 0.05555555556 | H55: Inserire risposta!
D56: 4.5. | E56: Anomalo aumento del capitale circolante operativo(9) non compensato da un pari aumento dell’autofinanziamento operativo(10); | G56: 0.05555555556 | H56: Inserire risposta!
D57: 4.6. | E57: Drastica riduzione del flusso di cassa operativo accompagnato da un saldo netto di gestione negativo; | G57: 0.05555555556 | H57: Inserire risposta!
D58: 4.7. | E58: Debt Service Coverage Ratio < 1,1(11); | G58: 0.05555555556 | H58: Inserire risposta!
D59: 4.8. | E59: Autofinanziamento operativo negativo; | G59: 0.05555555556 | H59: Inserire risposta!
D60: 4.9. | E60: Drastica crescita della posizione finanziaria netta associata ad un rapporto CNT/CI(12) < 30%; | G60: 0.05555555556 | H60: Inserire risposta!
D61: 4.10 | E61: Liabilities leverage (Equity/Total Asset<5% -10%)” e Profit before taxes/Revenues < -1%); | G61: 0.05555555556 | H61: Inserire risposta!
D62: 4.11 | E62: Oneri finanziari netti/margine operativo lordo(13) > 30%; | G62: 0.05555555556 | H62: Inserire risposta!
D63: 4.12 | E63: Anomala crescita dei costi capitalizzati non rientranti tra le immobilizzazioni valutabili al fair value (marchi, brevetti, opere d’ingegno) non giustificati da una dimostrabile crescita degli investimenti materiali ed aumento nel volume d’affari. | G63: 0.05555555556 | H63: Inserire risposta!
D64: 4.13 | E64: Presenza di crediti di dubbia esigibilità | G64: 0.05555555556 | H64: Inserire risposta!
D65: 4.14 | E65: Anomala valorizzazione di partecipazioni e potenziali rischi di svalutazione | G65: 0.05555555556 | H65: Inserire risposta!
D66: 4.15 | E66: Presenza di rilevanti e/o anomale partite infragruppo | G66: 0.05555555556 | H66: Inserire risposta!
D67: 4.16 | E67: Presenza di incassi/ricavi di carattere non ripetitivo che hanno significativamente contribuito ai risultati dell' esercizio | G67: 0.05555555556 | H67: Inserire risposta!
D68: 4.17 | E68: Sensibile riduzione del Margine Operativo Lordo | G68: 0.05555555556 | H68: Inserire risposta!
D69: 4.18 | E69: Anomalo valore di oneri e debiti diversi | G69: 0.05555555556 | H69: Inserire risposta!
G70: Subtotale | H70: =SUM(H52:H69) -> 0
A71: Anomalie gestionali | B71: 0.1 | D71: 5.1 | E71: Perdita di membri della direzione con responsabiità strategiche senza una loro sostituzione; | G71: =1/7 -> 0.1428571429 | H71: =IF(F71="","Inserire risposta!",IF(F71=$F$10,$G$10*G71*$B$71,$G$11)) -> Inserire risposta!
C72: =IF(OR(AND(F72="SI",OR(F71="SI",F73="SI",F74="SI",F75="SI",F76="SI",F77="SI")),AND(F72="SI",OR($F$24="SI",$F$35="SI",$F$47="SI",$F$52="SI",$F$80="SI")))=TRUE,1,"") ->  | D72: 5.2 | E72: Perdita di mercati fondamentali, di clienti chiave, di contratti di distribuzione, di concessioni o di forniture importanti; | G72: =1/7 -> 0.1428571429 | H72: =IF(F72="","Inserire risposta!",IF(F72=$F$10,$G$10*G72*$B$71,$G$11)) -> Inserire risposta!
D73: 5.3 | E73: Difficoltà con il personale; | G73: 0.1428571429 | H73: Inserire risposta!
D74: 5.4 | E74: Scarsità nell'approvigionamento di forniture importanti; | G74: 0.1428571429 | H74: =IF(F74="","Inserire risposta!",IF(F74=$F$10,$G$10*G74*$B$71,$G$11)) -> Inserire risposta!
D75: 5.5 | E75: Comparsa di concorrenti di grande successo; | G75: 0.1428571429 | H75: Inserire risposta!
D76: 5.6 | E76: Elevati rischi ambientali non adeguatamente coperti da polizze assicurative. | G76: 0.1428571429 | H76: Inserire risposta!
D77: 5.7 | E77: Elevati rischi di compliance (mancanza o carenza di un modello organizzativo ex D.lgs. 8 giugno 2001, n.231). | G77: 0.1428571429 | H77: Inserire risposta!
G78: Subtotale | H78: =SUM(H71:H77) -> 0
A79: Anomalie erariali | B79: 0.05 | D79: 6.1 | E79: Mancato pagamento di imposte dirette, indirette e ritenute d’acconto per oltre un semestre; | G79: =1/3 -> 0.3333333333 | H79: =IF(F79="","Inserire risposta!",IF(F79=$F$10,$G$10*G79*$B$79,$G$11)) -> Inserire risposta!
C80: =IF(OR(AND(F80="SI",F79="SI"),AND(F80="SI",OR($F$24="SI",$F$35="SI",$F$47="SI",$F$52="SI",$F$72="SI")))=TRUE,1,"") ->  | D80: 6.2 | E80: Mancato pagamento di contributi previdenziali e premi assicurativi obbligatori per lavoratori dipendenti per oltre un semestre; | G80: =1/3 -> 0.3333333333 | H80: =IF(F80="","Inserire risposta!",IF(F80=$F$10,$G$10*G80*$B$79,$G$11)) -> Inserire risposta!
D81: 6.3 | E81: Rilevante richiesta di rateizzazione di debiti erariali. | G81: =1/3 -> 0.3333333333 | H81: =IF(F81="","Inserire risposta!",IF(F81=$F$10,$G$10*G81*$B$79,$G$11)) -> Inserire risposta!
G82: Subtotale | H82: =SUM(H79:H81) -> 0
F83: SCORE COMPLESSIVO | H83: =H82+H33+H46+H51+H70+H78 -> 0
C84: =SUM(C23:C82) -> 0 | F84: GIUDIZIO PARZIALE | H84: =IF(COUNTIF(F23:F81,"")>5,"",IF($H$83<=$H$14,F14,IF(AND($H$83>G14,H83<=H15),F15,IF(AND($H$83>G15,$H$83<=H16),F16,IF(AND($H$83>G16,$H$83<=H17),F17,IF(AND($H$83>G17,$H$83<=H18),F18,IF(AND($H$83>G18,$H$83<=H19),F19,F20))))))) -> 
F85: SEVERITY (FATTORI DI RISCHIO CORRELATI) | H85: =IF(H84="","",IFERROR(IF(C84>=1,VLOOKUP(VLOOKUP(H84,F115:G120,2,FALSE)+1,G115:H121,2,FALSE),H84),F20)) -> 
A86: Manifestazioni significative da eventi pregiudizievoli | C86: =IF(F86="SI",1,"") ->  | D86: 7.1 | E86: Iscrizioni di ipoteche giudiziarie, pegni e forme tecniche di prelazione su beni aziendale; | H86: =IF(F86="","Inserire risposta!","") -> Inserire risposta!
C87: =IF(F87="SI",1,"") ->  | D87: 7.2 | E87: Decreti ingiuntivi ricevuti ed atti di ricognitivi di avvio di azioni per il recupero dei crediti; | H87: =IF(F87="","Inserire risposta!","") -> Inserire risposta!
C88: =IF(F88="SI",1,"") ->  | D88: 7.3 | E88: Protesto di assegni e cambiali; | H88: =IF(F88="","Inserire risposta!","") -> Inserire risposta!
D89: 7.4 | E89: Istanze di fallimento avanzate da creditori aziendali; | H89: Inserire risposta!
D90: 7.5 | E90: Default/fallimento dei garanti e default/fallimento dei garantiti (rischio infragruppo); | H90: Inserire risposta!
D91: 7.6 | E91: Intenzione della direzione di liquidare l'impresa o dicessare le attviità; | H91: Inserire risposta!
C92: =SUM(C86:C91) -> 0 | F92: WARNING | H92: =IF(H85="","",IFERROR(IF(AND(C92>=1,H85<>"RISCHIO ELEVATO",H85<>"RISCHIO MOLTO ELEVATO",H85<>"RISCHIO MASSIMO"),"RISCHIO",H85),"")) -> 
E94: =IF(H94="MIGLIORATIVO",CONCATENATE("RELAZIONE DETTAGLIATA SULL'ADEGUATA VERIFICA AL ",TEXT(NOW(),"GG.MM.AAAA")),"") ->  | F94: VARIAZIONE DELLO SCORE | I94: CONFERMATO
F95: GIUDIZIO FINALE | H95: =IF(H94="","",IF(H94="CONFERMATO",H92,IF(H94="PEGGIORATIVO",IFERROR(VLOOKUP(VLOOKUP(H92,F115:G120,2,FALSE)+1,G115:H121,2,FALSE),H92),IFERROR(VLOOKUP(VLOOKUP(H92,F116:G121,2,FALSE)-1,G115:H121,2,FALSE),H92)))) ->  | I95: MIGLIORATIVO
F96: ORIZZONTE TEMPORALE (in anni) | I96: PEGGIORATIVO
F97: PROBABILITA' DI DEFAULT LIFETIME | H97: =IFERROR(VLOOKUP(H95,'MATRICI DI TRANSAZIONE'!D165:N175,'Prevalutazione del rischio'!H96+1,FALSE),"") -> 
F115: SOLVIBILITA' | G115: 1 | H115: SOLVIBILITA'
F116: VULNERABILITA' | G116: 2 | H116: VULNERABILITA'
F117: VULNERABILITA' ELEVATA | G117: 3 | H117: VULNERABILITA' ELEVATA
F118: RISCHIO | G118: 4 | H118: RISCHIO
F119: RISCHIO ELEVATO | G119: 5 | H119: RISCHIO ELEVATO
F120: RISCHIO MOLTO ELEVATO | G120: 6 | H120: RISCHIO MOLTO ELEVATO
F121: RISCHIO MASSIMO | G121: 7 | H121: RISCHIO MASSIMO

Sheet Glossario PD
B10: GLOSSARIO
B12: Denominazione | C12: Formula | H12: Significato
B13: PD Marginale | H13: Corrisponde alla probabilità incondizionata che un default avvenga esattamente nel periodo t
B14: PD Current Lifetime (o cumulata) | H14: Corrisponde alla probabilità che un default avvenga nel periodo t o prima
B15: PD Forward Condizionata | H15: Denota la probabilità che un default avvenga esattamente nel periodo tw-tk, condizionato al fatto che non ci siano stati default prima del periodo tk
B16: PD Forward Lifetime | H16: Corrisponde alla probabilità che un default avvenga nell'intervallo di tempo [t,T], dove T è la maturity, condizionata al fatto che non ci siano stati default prima di t.

Sheet PD MEDIE DI CLASSE (hidden)
B3: BILANCI 2004 - 2014 | E3: Calibrata sul concetto di default sofferenza bancaria
B5: Classe | C5: CeBi-Score4 | D5: AREA di RISCHIO | E5: PD Media a 1 anno | F5: PD media a 3 anni | G5: PD media a 5 anni
B6: S1 | C6: Sicurezza elevata | D6: Area Solvibilità | E6: 4.5625e-05 | F6: 0.0015291 | G6: 0.0034618
B7: S2 | C7: Sicurezza | E7: 0.000301484 | F7: 0.0022048 | G7: 0.00604
B8: S3 | C8: Solvibilità elevata | E8: 0.000907003 | F8: 0.0056899 | G8: 0.0120116
B9: S4 | C9: Solvibilità | E9: 0.0023247 | F9: 0.0109271 | G9: 0.0243424
B10: V1 | C10: Vulnerabilità | D10: Area Vulnerabilità | E10: 0.0070015 | F10: 0.0254576 | G10: 0.0519483
B11: V2 | C11: Vulnerabilità elevata | E11: 0.0165586 | F11: 0.0591415 | G11: 0.1083369
B12: R1 | C12: Rischio | D12: Area Rischio | E12: 0.0372315 | F12: 0.1057523 | G12: 0.1736756
B13: R2 | C13: Rischio elevato | E13: 0.0876919 | F13: 0.1978533 | G13: 0.2864347
B14: R3 | C14: Rischio molto elevato | E14: 0.2055264 | F14: 0.3594873 | G14: 0.4417379
B15: R4 | C15: Rischio massimo | E15: 0.3407076 | F15: 0.4481349 | G15: 0.5158817
B16: D | C16: Default | E16: 1 | F16: 1 | G16: 1

Sheet MATRICI DI TRANSAZIONE (hidden)
D2: Matrice di transizione con dati puntuali dell'impresa
A3: Anno | D3: =CONCATENATE(A3,A5) -> Anno1 | E3: Rating al tempo t+1 | P3: Tot.
D4: Rating al tempo t | E4: S1 | F4: S2 | G4: S3 | H4: S4 | I4: V1 | J4: V2 | K4: R1 | L4: R2 | M4: R3 | N4: R4 | O4: Default
A5: 1 | B5: =CONCATENATE(A5,D5) -> 1S1 | D5: S1 | E5: 0.5792823054 | F5: 0.2202321768 | G5: 0.009273474912 | H5: 0.1313755394 | I5: 0.05261667323 | J5: 0.006474939937 | K5: 0.0006162126767 | L5: 8.305268895e-05 | M5: 0 | N5: 0 | O5: 4.5625e-05 | P5: =SUM(E5:O5) -> 1
A6: 1 | B6: 1S2 | D6: S2 | E6: 0.06181702891 | F6: 0.5804718742 | G6: 0.1170402726 | H6: 0.1640568003 | I6: 0.06629139961 | J6: 0.008310121467 | K6: 0.001408614945 | L6: 0.0002626448368 | M6: 3.975918623e-05 | N6: 0 | O6: 0.000301484 | P6: 1
A7: 1 | B7: 1S3 | D7: S3 | E7: 0.004504858541 | F7: 0.2087470984 | G7: 0.3214450659 | H7: 0.353393816 | I7: 0.09051904469 | J7: 0.01599895992 | K7: 0.003901815916 | L7: 0.0005128746626 | M7: 4.793082101e-05 | N7: 2.153217666e-05 | O7: 0.000907003 | P7: 1
A8: 1 | B8: 1S4 | D8: S4 | E8: 0.0124144279 | F8: 0.06896410881 | G8: 0.1055869706 | H8: 0.5313997377 | I8: 0.2121601303 | J8: 0.04895086996 | K8: 0.01482419424 | L8: 0.00305110588 | M8: 0.0003020746922 | N8: 2.167998917e-05 | O8: 0.0023247 | P8: 1
A9: 1 | B9: 1V1 | D9: V1 | E9: 0.004794368455 | F9: 0.02077402519 | G9: 0.02296429141 | H9: 0.2120370565 | I9: 0.4676130187 | J9: 0.1902732673 | K9: 0.06050656565 | L9: 0.01301130816 | M9: 0.0009626276218 | N9: 6.19709535e-05 | O9: 0.0070015 | P9: 1
A10: 1 | B10: 1V2 | D10: V2 | E10: 0.0005729779417 | F10: 0.00266167354 | G10: 0.004040231816 | H10: 0.05450073316 | I10: 0.235506827 | J10: 0.4053085837 | K10: 0.219303962 | L10: 0.05707900078 | M10: 0.004176204588 | N10: 0.0002912055051 | O10: 0.0165586 | P10: 1
A11: 1 | B11: 1R1 | D11: R1 | E11: 0.0001483742683 | F11: 0.0006626181353 | G11: 0.001272042567 | H11: 0.01556944875 | I11: 0.07653022299 | J11: 0.2285531405 | K11: 0.4344917539 | L11: 0.1896457324 | M11: 0.01467857912 | N11: 0.001216587373 | O11: 0.0372315 | P11: 1
A12: 1 | B12: 1R2 | D12: R2 | E12: 0 | F12: 0.0002779050541 | G12: 0.0003529988766 | H12: 0.003403341792 | I12: 0.02024984833 | J12: 0.07079236916 | K12: 0.260798323 | L12: 0.4719274531 | M12: 0.07672119217 | N12: 0.007784668574 | O12: 0.0877 | P12: 1.0000081
A13: 1 | B13: 1R3 | D13: R3 | E13: 0 | F13: 0 | G13: 0.0004317791304 | H13: 0.001997179152 | I13: 0.003911414405 | J13: 0.01737248613 | K13: 0.05587266569 | L13: 0.3498000054 | M13: 0.3089935078 | N13: 0.05609456234 | O13: 0.2055264 | P13: 1
A14: 1 | B14: 1R4 | D14: R4 | E14: 0 | F14: 0 | G14: 0 | H14: 0 | I14: 0.002126749677 | J14: 0.01605693893 | K14: 0.02846752305 | L14: 0.1860720639 | M14: 0.2568290615 | N14: 0.1697400629 | O14: 0.3407076 | P14: 1
D15: Default | E15: 0 | F15: 0 | G15: 0 | H15: 0 | I15: 0 | J15: 0 | K15: 0 | L15: 0 | M15: 0 | N15: 0 | O15: 1 | P15: 1
A19: Anno | D19: =CONCATENATE(A19,A21) -> Anno2 | E19: Rating al tempo t+2 | P19: Tot.
D20: Rating al tempo t | E20: S1 | F20: S2 | G20: S3 | H20: S4 | I20: V1 | J20: V2 | K20: R1 | L20: R2 | M20: R3 | N20: R4 | O20: Default | P20: Tot
A21: =A5+1 -> 2 | B21: =CONCATENATE(A21,D21) -> 2S1 | D21: S1 | E21: =MMULT(E5:O15,$E$5:$O$15) -> 0.3511108811 | F21: 0.2675219212 | G21: 0.04923572995 | H21: 0.1968436776 | I21: 0.09996945931 | J21: 0.02494289908 | K21: 0.007543936846 | L21: 0.001721802408 | M21: 0.0001419939277 | N21: 9.590356155e-06 | O21: 0.0009581088399 | P21: =SUM(E21:O21) -> 1.000000001
A22: 2 | B22: 2S2 | D22: S2 | E22: 0.07457927475 | F22: 0.3877078083 | G22: 0.1250139353 | H22: 0.2464246986 | I22: 0.1202026726 | J22: 0.03145017116 | K22: 0.01026069111 | L22: 0.002460039813 | M22: 0.0002298772542 | N22: 1.859355615e-05 | O22: 0.00165223968 | P22: 1.000000002
A23: 2 | B23: 2S3 | D23: S3 | E23: 0.02179268449 | F23: 0.2155619055 | G23: 0.1672628161 | H23: 0.356356226 | I23: 0.1645531201 | J23: 0.04884273238 | K23: 0.01760780478 | L23: 0.004392054407 | M23: 0.0004013710018 | N23: 3.993451345e-05 | O23: 0.003189354949 | P23: 1.000000004
A24: 2 | B24: 2S4 | D24: S4 | E24: 0.01957471395 | F24: 0.1060026469 | G24: 0.1033259466 | H24: 0.3805399064 | I24: 0.2394590165 | J24: 0.09217355999 | K24: 0.03922075658 | L24: 0.01161014702 | M24: 0.001127575047 | N24: 0.0001036082722 | O24: 0.006862147515 | P24: 1.000000025
A25: 2 | B25: 2V1 | D25: V1 | E25: 0.00915716007 | F25: 0.04279564598 | G25: 0.04383509193 | H25: 0.2353394366 | I25: 0.3170644619 | J25: 0.1918119117 | K25: 0.103024917 | L25: 0.03557290844 | M25: 0.003510490097 | N25: 0.000328895854 | O25: 0.01755918577 | P25: 1.000000105
A26: 2 | B26: 2V2 | D26: V2 | E26: 0.002585127273 | F26: 0.01240559718 | G26: 0.01471682042 | H26: 0.1065442403 | I26: 0.235670368 | J26: 0.266084622 | K26: 0.2143767799 | L26: 0.09641019673 | M26: 0.0108995694 | N26: 0.001128726388 | O26: 0.03917841477 | P26: 1.000000462
A27: 2 | B27: 2R1 | D27: R1 | E27: 0.0008882652344 | F27: 0.004295356581 | G27: 0.005438596339 | H27: 0.04497443175 | I27: 0.1302344962 | J27: 0.2209896255 | K27: 0.2940871205 | L27: 0.1913491604 | M27: 0.02680855414 | N27: 0.003106481962 | O27: 0.07782944753 | P27: 1.000001536
A28: 2 | B28: 2R2 | D28: R2 | E28: 0.0002373634765 | F28: 0.001382769751 | G28: 0.001787848419 | H28: 0.01595067154 | I28: 0.05674566579 | J28: 0.1271932873 | K28: 0.2577033532 | L28: 0.3047752654 | M28: 0.06605685756 | N28: 0.009638046005 | O28: 0.1585407941 | P28: 1.000011923
A29: 2 | B29: 2R3 | D29: R3 | E29: 6.373581957e-05 | F29: 0.00048959546 | G29: 0.000837649465 | H29: 0.005667577554 | I29: 0.01907041878 | J29: 0.05169186374 | K29: 0.1384424441 | L29: 0.2952486117 | M29: 0.1376178467 | N29: 0.02965075517 | O29: 0.3212223349 | P29: 1.000002833
A30: 2 | B30: 2R4 | D30: R4 | E30: 2.362054129e-05 | F30: 0.0001574929449 | G30: 0.0003265016143 | H30: 0.002915488805 | I30: 0.01208813105 | J30: 0.03377876796 | K30: 0.08372802234 | L30: 0.2155781362 | M30: 0.1377153313 | N30: 0.04470635301 | O30: 0.4689836613 | P30: 1.000001507
D31: Default | E31: 0 | F31: 0 | G31: 0 | H31: 0 | I31: 0 | J31: 0 | K31: 0 | L31: 0 | M31: 0 | N31: 0 | O31: 1 | P31: 1
A35: Anno | D35: =CONCATENATE(A35,A37) -> Anno3 | E35: Rating al tempo t+3 | P35: Tot.
D36: Rating al tempo t | E36: S1 | F36: S2 | G36: S3 | H36: S4 | I36: V1 | J36: V2 | K36: R1 | L36: R2 | M36: R3 | N36: R4 | O36: Default | P36: Tot
A37: =A21+1 -> 3 | B37: =CONCATENATE(A37,D37) -> 3S1 | D37: S1 | E37: =MMULT(E21:O31,$E$5:$O$15) -> 0.2230899341 | F37: 0.2586164644 | G37: 0.07358433479 | H37: 0.2346986875 | I37: 0.1356618655 | J37: 0.04589973973 | K37: 0.01895726539 | L37: 0.005744411041 | M37: 0.0005620291599 | N37: 5.096090777e-05 | O37: 0.003134322127 | P37: =SUM(E37:O37) -> 1.000000015
A38: 3 | B38: 3S2 | D38: S2 | E38: 0.07138762933 | F38: 0.2871572761 | G38: 0.1151748415 | H38: 0.2759032298 | I38: 0.1576745165 | J38: 0.05590952854 | K38: 0.02401624782 | L38: 0.007473873561 | M38: 0.0007580538928 | N38: 7.232640138e-05 | O38: 0.004472498611 | P38: 1.000000022
A39: 3 | B39: 3S3 | D39: S3 | E39: 0.0319464937 | F39: 0.1929798126 | G39: 0.1208242027 | H39: 0.324547889 | I39: 0.1960697133 | J39: 0.07750172586 | K39: 0.03573979308 | L39: 0.01172024367 | M39: 0.001216313012 | N39: 0.0001206534563 | O39: 0.007333199323 | P39: 1.00000004
A40: 3 | B40: 3S4 | D40: S4 | E40: 0.02428839564 | F40: 0.1189042025 | G40: 0.09190766081 | H40: 0.3151457731 | I40: 0.2350683462 | J40: 0.1140170809 | K40: 0.06104355729 | L40: 0.02295127793 | M40: 0.002581036342 | N40: 0.0002710898125 | O40: 0.01382169825 | P40: 1.000000119
A41: 3 | B41: 3V1 | D41: V1 | E41: 0.01271446993 | F41: 0.05941419076 | G41: 0.05223433527 | H41: 0.2281897329 | I41: 0.2592721399 | J41: 0.1768394463 | K41: 0.1192216083 | L41: 0.05344161942 | M41: 0.006591797457 | N41: 0.0007365598172 | O41: 0.03134449345 | P41: 1.000000394
A42: 3 | B42: 3V2 | D42: V2 | E42: 0.004967537824 | F42: 0.02396314597 | G42: 0.02425474231 | H42: 0.1323535314 | I42: 0.2161659027 | J42: 0.2142879389 | K42: 0.1931986197 | L42: 0.1087672767 | M42: 0.01557270724 | N42: 0.001909042963 | O42: 0.06456079756 | P42: 1.000001243
A43: 3 | B43: 3R1 | D43: R1 | E43: 0.002157563765 | F43: 0.01046761238 | G43: 0.01134469596 | H43: 0.0715849246 | I43: 0.1498022825 | J43: 0.1979553383 | K43: 0.2363067387 | L43: 0.1704805523 | M43: 0.0291411031 | N43: 0.00395199733 | O43: 0.1168102772 | P43: 1.000003086
A44: 3 | B44: 3R2 | D44: R2 | E44: 0.0008122267699 | F44: 0.004101006441 | G44: 0.004703850378 | H44: 0.03351182606 | I44: 0.08631260693 | J44: 0.1449491484 | K44: 0.226993007 | L44: 0.2256525843 | M44: 0.0506426803 | N44: 0.008068426401 | O44: 0.2142670283 | P44: 1.000014391
A45: 3 | B45: 3R3 | D45: R3 | E45: 0.0002829098027 | F45: 0.001571491185 | G45: 0.001912107462 | H45: 0.01369249607 | I45: 0.03958054054 | J45: 0.08028473121 | K45: 0.1582637333 | L45: 0.2224633517 | M45: 0.07505816581 | N45: 0.01523574953 | O45: 0.3916599484 | P45: 1.000005225
A46: 3 | B46: 3R4 | D46: R4 | E46: 0.0001508162039 | F46: 0.0008222597314 | G46: 0.001087578497 | H46: 0.008410041354 | I46: 0.02567437601 | J46: 0.05364816824 | K46: 0.1097527125 | L46: 0.1762017769 | M46: 0.07195706003 | N46: 0.01710426312 | O46: 0.5351942008 | P46: 1.000003253
D47: Default | E47: 0 | F47: 0 | G47: 0 | H47: 0 | I47: 0 | J47: 0 | K47: 0 | L47: 0 | M47: 0 | N47: 0 | O47: 1 | P47: 1
A51: Anno | D51: =CONCATENATE(A51,A53) -> Anno4 | E51: Rating al tempo t+4 | P51: Tot.
D52: Rating al tempo t | E52: S1 | F52: S2 | G52: S3 | H52: S4 | I52: V1 | J52: V2 | K52: R1 | L52: R2 | M52: R3 | N52: R4 | O52: Default | P52: Tot
A53: =A37+1 -> 4 | B53: =CONCATENATE(A53,D53) -> 4S1 | D53: S1 | E53: =MMULT(E37:O47,$E$5:$O$15) -> 0.149143615 | F53: 0.2337520387 | G53: 0.08409901425 | H53: 0.2540421588 | I53: 0.1611531758 | J53: 0.06542597594 | K53: 0.03231028272 | L53: 0.01173752216 | M53: 0.001312719821 | N53: 0.0001364044412 | O53: 0.006887153437 | P53: =SUM(E53:O53) -> 1.000000061
A54: 4 | B54: 4S2 | D54: S2 | E54: 0.0638403753 | F54: 0.2289207475 | G54: 0.1043054343 | H54: 0.2806864934 | I54: 0.1806435839 | J54: 0.0768911932 | K54: 0.03921789147 | L54: 0.01458537148 | M54: 0.001664290558 | N54: 0.0001767128284 | O54: 0.009067988692 | P54: 1.000000083
A55: 4 | B55: 4S3 | D55: S3 | E55: 0.03599858957 | F55: 0.1709652374 | G55: 0.100854889 | H55: 0.2974165394 | I55: 0.2071812916 | J55: 0.09737065359 | K55: 0.05309071398 | L55: 0.02083730109 | M55: 0.002454527398 | N55: 0.000267784424 | O55: 0.01356260724 | P55: 1.000000135
A56: 4 | B56: 4S4 | D56: S4 | E56: 0.02694791866 | F56: 0.1205224552 | G56: 0.08290606932 | H56: 0.2797368193 | I56: 0.2262609914 | J56: 0.1246074488 | K56: 0.07710092559 | L56: 0.0339697318 | M56: 0.004330801551 | N56: 0.000500310959 | O56: 0.02311683203 | P56: 1.000000305
A57: 4 | B57: 4V1 | D57: V1 | E57: 0.01546829017 | F57: 0.06987973449 | G57: 0.05479793169 | H57: 0.2178013683 | I57: 0.2308681241 | J57: 0.1647470229 | K57: 0.1242748819 | L57: 0.06448027066 | M57: 0.009137997616 | N57: 0.001129492333 | O57: 0.04741571215 | P57: 1.000000826
A58: 4 | B58: 4V2 | D58: V2 | E58: 0.007299121757 | F58: 0.03441393867 | G58: 0.03074284044 | H58: 0.144411339 | I58: 0.2007268729 | J58: 0.1872387404 | K58: 0.1754011032 | L58: 0.1092390235 | M58: 0.01762789301 | N58: 0.002358534987 | O58: 0.09054271639 | P58: 1.000002124
A59: 4 | B59: 4R1 | D59: R1 | E59: 0.003703400564 | F59: 0.01769912985 | G59: 0.01706351511 | H59: 0.09092000499 | I59: 0.1553503462 | J59: 0.1791700523 | K59: 0.2024730059 | L59: 0.1496733083 | M59: 0.02756100755 | N59: 0.003988817404 | O59: 0.1524018789 | P59: 1.000004467
A60: 4 | B60: 4R2 | D60: R2 | E60: 0.001691787984 | F60: 0.008244412961 | G60: 0.008495959111 | H60: 0.05085456927 | I60: 0.1045041723 | J60: 0.1457909337 | K60: 0.1980674535 | L60: 0.1782584207 | M60: 0.03906367169 | N60: 0.006291488285 | O60: 0.2587533495 | P60: 1.000016219
A61: 4 | B61: 4R3 | D61: R3 | E61: 0.0006988751782 | F61: 0.003520580948 | G61: 0.003792502063 | H61: 0.02438611755 | I61: 0.0575559185 | J61: 0.09425591933 | K61: 0.151624251 | L61: 0.1692316597 | M61: 0.04687388655 | N61: 0.008746987391 | O61: 0.4393203286 | P61: 1.000007027
A62: 4 | B62: 4R4 | D62: R4 | E62: 0.000417616165 | F62: 0.002115378637 | G62: 0.002374447221 | H62: 0.01582810701 | I62: 0.03887063776 | J62: 0.06614888257 | K62: 0.1115960162 | L62: 0.1357444821 | M62: 0.04200794636 | N62: 0.008462294143 | O62: 0.5764388724 | P62: 1.000004681
D63: Default | E63: 0 | F63: 0 | G63: 0 | H63: 0 | I63: 0 | J63: 0 | K63: 0 | L63: 0 | M63: 0 | N63: 0 | O63: 1 | P63: 1
A67: Anno | D67: =CONCATENATE(A67,A69) -> Anno5 | E67: Rating al tempo t+5 | P67: Tot.
D68: Rating al tempo t | E68: S1 | F68: S2 | G68: S3 | H68: S4 | I68: V1 | J68: V2 | K68: R1 | L68: R2 | M68: R3 | N68: R4 | O68: Default | P68: Tot
A69: =A53+1 -> 5 | B69: =CONCATENATE(A69,D69) -> 5S1 | D69: S1 | E69: =MMULT(E53:O63,$E$5:$O$15) -> 0.1051936653 | F69: 0.2071545373 | G69: 0.08660915184 | H69: 0.2609422731 | I69: 0.1783347785 | J69: 0.0821106752 | K69: 0.04579118669 | L69: 0.01887462191 | M69: 0.002333867453 | N69: 0.0002638284305 | O69: 0.0123915706 | P69: =SUM(E69:O69) -> 1.000000156
A70: 5 | B70: 5S2 | D70: S2 | E70: 0.05600319149 | F70: 0.1920599042 | G70: 0.09506503673 | H70: 0.2751180175 | I70: 0.1934099398 | J70: 0.09328830945 | K70: 0.05366410812 | L70: 0.02265040174 | M70: 0.00284820527 | N70: 0.0003265241687 | O70: 0.0155665622 | P70: 1.000000201
A71: 5 | B71: 5S3 | D71: S3 | E71: 0.03662547416 | F71: 0.1533369195 | G71: 0.08939338843 | H71: 0.276605204 | I71: 0.2097641602 | J71: 0.1103685376 | K71: 0.06760165803 | L71: 0.0300711301 | M71: 0.003912718389 | N71: 0.0004597540655 | O71: 0.02186135898 | P71: 1.000000303
A72: 5 | B72: 5S4 | D72: S4 | E72: 0.0280746609 | F72: 0.1175854408 | G72: 0.0763534953 | H72: 0.2573549811 | I72: 0.2180160169 | J72: 0.1298614274 | K72: 0.08828909682 | L72: 0.04324745874 | M72: 0.006036072638 | N72: 0.0007442581712 | O72: 0.03443767098 | P72: 1.00000058
A73: 5 | B73: 5V1 | D73: V1 | E73: 0.01745070313 | F73: 0.07576405136 | G73: 0.05508582845 | H73: 0.2087052618 | I73: 0.2142259723 | J73: 0.1560655681 | K73: 0.1250046948 | L73: 0.070524619 | M73: 0.01086630478 | N73: 0.001425645073 | O73: 0.06488269984 | P73: 1.000001349
A74: 5 | B74: 5V2 | D74: V2 | E74: 0.00938256309 | F74: 0.04277535853 | G74: 0.03486092376 | H74: 0.1501133103 | I74: 0.1897545705 | J74: 0.1701424596 | K74: 0.1612729459 | L74: 0.1051872051 | M74: 0.01802986924 | N74: 0.002523704165 | O74: 0.1159600989 | P74: 1.000003009
A75: 5 | B75: 5R1 | D75: R1 | E75: 0.005322519677 | F75: 0.02480153287 | G75: 0.02180449323 | H75: 0.1041569625 | I75: 0.1556844005 | J75: 0.164487272 | K75: 0.1787948841 | L75: 0.1319554057 | M75: 0.02492252885 | N75: 0.00369870905 | O75: 0.1843769708 | P75: 1.000005679
A76: 5 | B76: 5R2 | D76: R2 | E76: 0.002773226045 | F76: 0.01317868504 | G76: 0.01240181671 | H76: 0.06547429816 | I76: 0.1143302067 | J76: 0.140347365 | K76: 0.1740052683 | L76: 0.1463659953 | M76: 0.03099535357 | N76: 0.004938043082 | O76: 0.2952074051 | P76: 1.000017663
A77: 5 | B77: 5R3 | D77: R3 | E77: 0.001294750242 | F77: 0.006264999588 | G77: 0.006187865009 | H77: 0.03533969258 | I77: 0.07013172058 | J77: 0.09803153989 | K77: 0.1374176934 | L77: 0.132850258 | M77: 0.03239621554 | N77: 0.005647585863 | O77: 0.474446077 | P77: 1.000008398
A78: 5 | B78: 5R4 | D78: R4 | E78: 0.0008206975065 | F78: 0.004002356541 | G78: 0.004053857618 | H78: 0.02378262261 | I78: 0.04896174147 | J78: 0.07102077901 | K78: 0.1035832601 | L78: 0.1058258036 | M78: 0.02752474362 | N78: 0.005007365864 | O78: 0.6054225522 | P78: 1.00000578
D79: Default | E79: 0 | F79: 0 | G79: 0 | H79: 0 | I79: 0 | J79: 0 | K79: 0 | L79: 0 | M79: 0 | N79: 0 | O79: 1 | P79: 1
A83: Anno | D83: =CONCATENATE(A83,A85) -> Anno6 | E83: Rating al tempo t+6 | P83: Tot.
D84: Rating al tempo t | E84: S1 | F84: S2 | G84: S3 | H84: S4 | I84: V1 | J84: V2 | K84: R1 | L84: R2 | M84: R3 | N84: R4 | O84: Default | P84: Tot
A85: =A69+1 -> 6 | B85: =CONCATENATE(A85,D85) -> 6S1 | D85: S1 | E85: =MMULT(E69:O79,$E$5:$O$15) -> 0.07828096243 | F85: 0.1834483433 | G85: 0.08510611973 | H85: 0.2601472942 | I85: 0.1890944257 | J85: 0.09562079219 | K85: 0.05831670863 | L85: 0.02636792422 | M85: 0.003514934313 | N85: 0.0004208259494 | O85: 0.01968197851 | P85: =SUM(E85:O85) -> 1.000000309
A86: 6 | B86: 6S2 | D86: S2 | E86: 0.04914661089 | F86: 0.1669449563 | G86: 0.08750106977 | H86: 0.2656718729 | I86: 0.1996413601 | J86: 0.1054814596 | K86: 0.06630767603 | L86: 0.03070815996 | M86: 0.004160488212 | N86: 0.0005039693884 | O86: 0.02393276108 | P86: 1.000000384
A87: 6 | B87: 6S3 | D87: S3 | E87: 0.03561087758 | F87: 0.1395148807 | G87: 0.08158850592 | H87: 0.2602022779 | I87: 0.2087482139 | J87: 0.1187822243 | K87: 0.07903073942 | L87: 0.03842812043 | M87: 0.005383255071 | N87: 0.0006669188574 | O87: 0.03204453294 | P87: 1.000000547
A88: 6 | B88: 6S4 | D88: S4 | E88: 0.02820357012 | F88: 0.113070052 | G88: 0.07140080253 | H88: 0.2415591085 | I88: 0.2109721222 | J88: 0.1324519814 | K88: 0.09596464396 | L88: 0.05050984343 | M88: 0.007508480814 | N88: 0.0009675503482 | O88: 0.0473927749 | P88: 1.00000093
A89: 6 | B89: 6V1 | D89: V1 | E89: 0.01876655023 | F89: 0.07868244733 | G89: 0.05451158496 | H89: 0.2012326239 | I89: 0.2031756 | J89: 0.1496308976 | K89: 0.1239680986 | L89: 0.07343722608 | M89: 0.01189606765 | N89: 0.001617053399 | O89: 0.08308377027 | P89: 1.00000192
A90: 6 | B90: 6V2 | D90: V2 | E90: 0.01113118271 | F90: 0.04905670652 | G90: 0.03744438637 | H90: 0.1527528535 | I90: 0.181682542 | J90: 0.1580471934 | K90: 0.1498053106 | L90: 0.09967031659 | M90: 0.01759854835 | N90: 0.002520112266 | O90: 0.1402947089 | P90: 1.000003861
A91: 6 | B91: 6R1 | D91: R1 | E91: 0.006874858319 | F91: 0.03113064604 | G91: 0.02548322581 | H91: 0.1130808055 | I91: 0.1539944241 | J91: 0.152676597 | K91: 0.1607564071 | L91: 0.1173375522 | M91: 0.02226935946 | N91: 0.003330861283 | O91: 0.2130720114 | P91: 1.000006748
A92: 6 | B92: 6R2 | D92: R2 | E92: 0.0039442173 | F92: 0.01826946185 | G92: 0.01594683028 | H92: 0.07686261485 | I92: 0.1189605322 | J92: 0.132917689 | K92: 0.1543839545 | L92: 0.1235427888 | M92: 0.025346193 | N92: 0.00397759951 | O92: 0.3258669673 | P92: 1.000018849
A93: 6 | B93: 6R3 | D93: R3 | E93: 0.002016703556 | F93: 0.009496492286 | G93: 0.008708014422 | H93: 0.0450338389 | I93: 0.07776836723 | J93: 0.09643208628 | K93: 0.1226245986 | L93: 0.1077602168 | M93: 0.02415834252 | N93: 0.004011041827 | O93: 0.5019997712 | P93: 1.000009474
A94: 6 | B94: 6R4 | D94: R4 | E94: 0.001327142101 | F94: 0.00629459004 | G94: 0.005882590647 | H94: 0.03111537656 | I94: 0.05553072242 | J94: 0.07109356844 | K94: 0.09319785674 | L94: 0.08491272476 | M94: 0.01978180784 | N94: 0.003368094681 | O94: 0.6275021631 | P94: 1.000006637
D95: Default | E95: 0 | F95: 0 | G95: 0 | H95: 0 | I95: 0 | J95: 0 | K95: 0 | L95: 0 | M95: 0 | N95: 0 | O95: 1 | P95: 1
A99: Anno | D99: =CONCATENATE(A99,A101) -> Anno7 | E99: Rating al tempo t+7 | P99: Tot.
D100: Rating al tempo t | E100: S1 | F100: S2 | G100: S3 | H100: S4 | I100: V1 | J100: V2 | K100: R1 | L100: R2 | M100: R3 | N100: R4 | O100: Default | P100: Tot
A101: =A85+1 -> 7 | B101: =CONCATENATE(A101,D101) -> 7S1 | D101: S1 | E101: =MMULT(E85:O95,$E$5:$O$15) -> 0.06127000843 | F101: 0.1636618054 | G101: 0.08183564413 | H101: 0.2550094789 | I101: 0.1951304848 | J101: 0.1061258654 | K101: 0.06932986915 | L101: 0.03362146427 | M101: 0.004744473604 | N101: 0.0005918488209 | O101: 0.0286795797 | P101: =SUM(E101:O101) -> 1.000000523
A102: 7 | B102: 7S2 | D102: S2 | E102: 0.04350957864 | F102: 0.1487985176 | G102: 0.08128109289 | H102: 0.2551707952 | I102: 0.2018486633 | J102: 0.1142584057 | K102: 0.07682292492 | L102: 0.03813787559 | M102: 0.005468043728 | N102: 0.0006893790893 | O102: 0.03401535627 | P102: 1.000000633
A103: 7 | B103: 7S3 | D103: S3 | E103: 0.03393155534 | F103: 0.1285188542 | G103: 0.07574937164 | H103: 0.2467791344 | I103: 0.2061485108 | J103: 0.1241824534 | K103: 0.08775410525 | L103: 0.04550169291 | M103: 0.006728048977 | N103: 0.0008653964913 | O103: 0.0438417349 | P103: 1.000000858
A104: 7 | B104: 7S4 | D104: S4 | E104: 0.02774956128 | F104: 0.1082218466 | G104: 0.06747533001 | H104: 0.2294858717 | I104: 0.2049369899 | J104: 0.1335700985 | K104: 0.1011643979 | L104: 0.05595369945 | M104: 0.008689487826 | N104: 0.00115378807 | O104: 0.06160026809 | P104: 1.000001339
A105: 7 | B105: 7V1 | D105: V1 | E105: 0.01955702805 | F105: 0.07978450536 | G105: 0.05361214901 | H105: 0.1950124321 | I105: 0.1951023013 | J105: 0.1445683087 | K105: 0.1221524301 | L105: 0.07447772317 | M105: 0.01243198116 | N105: 0.001725986744 | O105: 0.1015776691 | P105: 1.000002515
A106: 7 | B106: 7V2 | D106: V2 | E106: 0.01252949583 | F106: 0.05360026473 | G106: 0.03905395841 | H106: 0.1537597573 | I106: 0.1753706713 | J106: 0.1488239801 | K106: 0.1402779053 | L106: 0.0939561731 | M106: 0.01681564789 | N106: 0.002434499706 | O106: 0.1633823147 | P106: 1.000004668
A107: 7 | B107: 7R1 | D107: R1 | E107: 0.008275158102 | F107: 0.03644718399 | G107: 0.02824735614 | H107: 0.1190273224 | I107: 0.1514625403 | J107: 0.1429168228 | K107: 0.1464119465 | L107: 0.105356316 | M107: 0.01992096801 | N107: 0.002980582493 | O107: 0.2389615019 | P107: 1.000007699
A108: 7 | B108: 7R2 | D108: R2 | E108: 0.005109628879 | F108: 0.02306487196 | G108: 0.01893635995 | H108: 0.08533859257 | I108: 0.1205241908 | J108: 0.1252376928 | K108: 0.1384047812 | L108: 0.106570172 | M108: 0.02129217449 | N108: 0.00329459104 | O108: 0.3522467935 | P108: 1.000019849
A109: 7 | B109: 7R3 | D109: R3 | E109: 0.002799881343 | F109: 0.01286351414 | G109: 0.01106426623 | H109: 0.05290082415 | I109: 0.08182382959 | J109: 0.09245666714 | K109: 0.1094166587 | L109: 0.08996781382 | M109: 0.01905435092 | N109: 0.003058112024 | O109: 0.5246044286 | P109: 1.000010347
A110: 7 | B110: 7R4 | D110: R4 | E110: 0.001891480582 | F110: 0.008748106577 | G110: 0.00764486114 | H110: 0.03724935503 | I110: 0.05926740578 | J110: 0.06876856386 | K110: 0.08328491226 | L110: 0.07017380054 | M110: 0.01522038047 | N110: 0.002480698588 | O110: 0.6452777603 | P110: 1.000007325
D111: Default | E111: 0 | F111: 0 | G111: 0 | H111: 0 | I111: 0 | J111: 0 | K111: 0 | L111: 0 | M111: 0 | N111: 0 | O111: 1 | P111: 1
A115: Anno | D115: =CONCATENATE(A115,A117) -> Anno8 | E115: Rating al tempo t+8 | P115: Tot.
D116: Rating al tempo t | E116: S1 | F116: S2 | G116: S3 | H116: S4 | I116: V1 | J116: V2 | K116: R1 | L116: R2 | M116: R3 | N116: R4 | O116: Default | P116: Tot
A117: =A101+1 -> 8 | B117: =CONCATENATE(A117,D117) -> 8S1 | D117: S1 | E117: =MMULT(E101:O111,$E$5:$O$15) -> 0.05015079507 | F117: 0.1475555578 | G117: 0.07796646444 | H117: 0.2476935531 | I117: 0.1978291198 | J117: 0.1140084583 | K117: 0.07862202054 | L117: 0.04024931638 | M117: 0.005933661049 | N117: 0.0007629649868 | O117: 0.03922888353 | P117: =SUM(E117:O117) -> 1.000000795
A118: 8 | B118: 8S2 | D118: S2 | E118: 0.0389811735 | F118: 0.1350792131 | G118: 0.07609950917 | H118: 0.244812803 | I118: 0.2016180603 | J118: 0.1203898725 | K118: 0.08525710721 | L118: 0.04461945194 | M118: 0.006678641454 | N118: 0.0008671589816 | O118: 0.04559795062 | P118: 1.000000942
A119: 8 | B119: 8S3 | D119: S3 | E119: 0.03207799148 | F119: 0.1195896252 | G119: 0.07112884253 | H119: 0.2354636313 | I119: 0.2028274576 | J119: 0.1275448691 | K119: 0.09425859703 | L119: 0.05122903157 | M119: 0.007880573973 | N119: 0.001041194605 | O119: 0.05695941242 | P119: 1.000001227
A120: 8 | B120: 8S4 | D120: S4 | E120: 0.02699177183 | F120: 0.1035381218 | G120: 0.06424205504 | H120: 0.2197110021 | I120: 0.1996293266 | J120: 0.1337752398 | K120: 0.1045933252 | L120: 0.05990182056 | M120: 0.009591058676 | N120: 0.001299958042 | O120: 0.07672811286 | P120: 1.000001792
A121: 8 | B121: 8V1 | D121: V1 | E121: 0.01995991534 | F121: 0.07979947926 | G121: 0.05259501167 | H121: 0.1896624075 | I121: 0.1887328482 | J121: 0.1403454096 | K121: 0.1199755283 | L121: 0.07441906418 | M121: 0.0126479367 | N121: 0.001778301152 | O121: 0.1200872162 | P121: 1.000003118
A122: 8 | B122: 8V2 | D122: V2 | E122: 0.01360317443 | F122: 0.05678748657 | G122: 0.04002572389 | H122: 0.1537823748 | I122: 0.1701330346 | J122: 0.1414095924 | K122: 0.1322257791 | L122: 0.08855952113 | M122: 0.01592947221 | N122: 0.002316957215 | O122: 0.1852323132 | P122: 1.00000543
A123: 8 | B123: 8R1 | D123: R1 | E123: 0.009481394922 | F123: 0.04073736694 | G123: 0.03027791682 | H123: 0.122882736 | I123: 0.1485677116 | J123: 0.1346948376 | K123: 0.1347272644 | L123: 0.09552608404 | M123: 0.01793454158 | N123: 0.002675862351 | O123: 0.2625028357 | P123: 1.000008552
A124: 8 | B124: 8R2 | D124: R2 | E124: 0.006200586403 | F124: 0.02731046466 | G124: 0.02134115724 | H124: 0.09143737343 | I124: 0.1203108826 | J124: 0.1179975617 | K124: 0.1253447249 | L124: 0.09359549112 | M124: 0.01829970804 | N124: 0.002797791064 | O124: 0.3753849712 | P124: 1.000020712
A125: 8 | B125: 8R3 | D125: R3 | E125: 0.003585186201 | F125: 0.01608482752 | G125: 0.01310544647 | H125: 0.05893615359 | I125: 0.08353764679 | J125: 0.08769063377 | K125: 0.09822998536 | L125: 0.07695558578 | M125: 0.01566350738 | N125: 0.002454793859 | O125: 0.5437673086 | P125: 1.000011075
A126: 8 | B126: 8R4 | D126: R4 | E126: 0.002469261629 | F126: 0.01114825566 | G126: 0.00920803081 | H126: 0.04206037164 | I126: 0.06104358875 | J126: 0.0654871815 | K126: 0.07467163415 | L126: 0.05951366373 | M126: 0.01230264641 | N126: 0.001947128486 | O126: 0.6601561307 | P126: 1.000007894
D127: Default | E127: 0 | F127: 0 | G127: 0 | H127: 0 | I127: 0 | J127: 0 | K127: 0 | L127: 0 | M127: 0 | N127: 0 | O127: 1 | P127: 1
A131: Anno | D131: =CONCATENATE(A131,A133) -> Anno9 | E131: Rating al tempo t+9 | P131: Tot.
D132: Rating al tempo t | E132: S1 | F132: S2 | G132: S3 | H132: S4 | I132: V1 | J132: V2 | K132: R1 | L132: R2 | M132: R3 | N132: R4 | O132: Default | P132: Tot
A133: =A117+1 -> 9 | B133: =CONCATENATE(A133,D133) -> 9S1 | D133: S1 | E133: =MMULT(E117:O127,$E$5:$O$15) -> 0.04262457152 | F133: 0.1345303506 | G133: 0.07407056877 | H133: 0.2395068191 | I133: 0.1982426559 | J133: 0.1197073125 | K133: 0.08619811088 | L133: 0.04604279984 | M133: 0.007022433469 | N133: 0.0009238383214 | O133: 0.05113166012 | P133: =SUM(E133:O133) -> 1.000001121
A134: 9 | B134: 9S2 | D134: S2 | E134: 0.03536159006 | F134: 0.1243411913 | G134: 0.07172555671 | H134: 0.2350728276 | I134: 0.1999217372 | J134: 0.1245082587 | K134: 0.09181959418 | L134: 0.05004307671 | M134: 0.007740904973 | N134: 0.001027396239 | O134: 0.05843916947 | P134: 1.000001303
A135: 9 | B135: 9S3 | D135: S3 | E135: 0.03027795533 | F135: 0.1121992185 | G135: 0.06733467086 | H135: 0.2257114289 | I135: 0.1991766077 | J135: 0.1294766643 | K135: 0.09898477844 | L135: 0.05571065176 | M135: 0.008823582312 | N135: 0.001188612224 | O135: 0.07111747156 | P135: 1.000001642
A136: 9 | B136: 9S4 | D136: S4 | E136: 0.02610252841 | F136: 0.09919706342 | G136: 0.06150051092 | H136: 0.2114604507 | I136: 0.1948250354 | J136: 0.1333556311 | K136: 0.1067266186 | L136: 0.06266777048 | M136: 0.01025286873 | N136: 0.001409697847 | O136: 0.09250410216 | P136: 1.000002278
A137: 9 | B137: 9V1 | D137: V1 | E137: 0.02008994678 | F137: 0.07917059787 | G137: 0.05154262567 | H137: 0.1849009692 | I137: 0.1833881158 | J137: 0.1366493686 | K137: 0.1176334382 | L137: 0.07372309523 | M137: 0.01266621585 | N137: 0.001794427561 | O137: 0.1384449201 | P137: 1.000003721
A138: 9 | B138: 9V2 | D138: V2 | E138: 0.0143962663 | F138: 0.05894307408 | G138: 0.0405607065 | H138: 0.1531415838 | I138: 0.1655690206 | J138: 0.1352183248 | K138: 0.1253332618 | L138: 0.08366392523 | M138: 0.01505740424 | N138: 0.002193026369 | O138: 0.2059295531 | P138: 1.000006147
A139: 9 | B139: 9R1 | D139: R1 | E139: 0.01048203948 | F139: 0.04409061262 | G139: 0.03173213458 | H139: 0.125230131 | I139: 0.1455256485 | J139: 0.1276703846 | K139: 0.1250605895 | L139: 0.08742648919 | M139: 0.01628109527 | N139: 0.002419524505 | O139: 0.2840906765 | P139: 1.000009326
A140: 9 | B140: 9R2 | D140: R2 | E140: 0.007174445976 | F140: 0.03090180551 | G140: 0.0232085062 | H140: 0.09567465464 | I140: 0.1190814979 | J140: 0.1114384588 | K140: 0.1146108727 | L140: 0.0834614059 | M140: 0.01603201135 | N140: 0.002426773235 | O140: 0.3960110383 | P140: 1.000021471
A141: 9 | B141: 9R3 | D141: R3 | E141: 0.004327177847 | F141: 0.01898185891 | G141: 0.01478294524 | H141: 0.06337472768 | I141: 0.08380254374 | J141: 0.08289844824 | K141: 0.08893021227 | L141: 0.06716550672 | M141: 0.01328208586 | N141: 0.002046166372 | O141: 0.5604200258 | P141: 1.000011699
A142: 9 | B142: 9R4 | D142: R4 | E142: 0.003024455454 | F142: 0.01334630995 | G142: 0.01051630875 | H142: 0.04566059372 | I142: 0.06156549029 | J142: 0.06199686447 | K142: 0.06743988518 | L142: 0.05158144665 | M142: 0.01030938985 | N142: 0.001598719287 | O142: 0.672968912 | P142: 1.000008376
D143: Default | E143: 0 | F143: 0 | G143: 0 | H143: 0 | I143: 0 | J143: 0 | K143: 0 | L143: 0 | M143: 0 | N143: 0 | O143: 1 | P143: 1
A147: Anno | D147: =CONCATENATE(A147,A149) -> Anno10 | E147: Rating al tempo t+10 | P147: Tot.
D148: Rating al tempo t | E148: S1 | F148: S2 | G148: S3 | H148: S4 | I148: V1 | J148: V2 | K148: R1 | L148: R2 | M148: R3 | N148: R4 | O148: Default | P148: Tot
A149: =A133+1 -> 10 | B149: =CONCATENATE(A149,D149) -> 10S1 | D149: S1 | E149: =MMULT(E133:O143,$E$5:$O$15) -> 0.03734677177 | F149: 0.1239646092 | G149: 0.0704042454 | H149: 0.2311920938 | I149: 0.1971308523 | J149: 0.1236389124 | K149: 0.09218145761 | L149: 0.05092410634 | M149: 0.007976883278 | N149: 0.001067960298 | O149: 0.06417360153 | P149: =SUM(E149:O149) -> 1.000001494
A150: 10 | B150: 10S2 | D150: S2 | E150: 0.03245561721 | F150: 0.1157077423 | G150: 0.06798921499 | H150: 0.2261016353 | I150: 0.1973503251 | J150: 0.1271001366 | K150: 0.09677105589 | L150: 0.05442649735 | M150: 0.008634713545 | N150: 0.001165175919 | O150: 0.0722995944 | P150: 1.000001709
A151: 10 | B151: 10S3 | D151: S3 | E151: 0.02862451764 | F151: 0.1059819712 | G151: 0.06413564658 | H151: 0.2171612357 | I151: 0.1953837179 | J151: 0.1303700239 | K151: 0.1022958071 | L151: 0.05910821724 | M151: 0.009567167342 | N151: 0.001307213458 | O151: 0.08606657495 | P151: 1.000002093
A152: 10 | B152: 10S4 | D152: S4 | E152: 0.02518132051 | F152: 0.09524134074 | G152: 0.05912373264 | H152: 0.2042806528 | I152: 0.1903685951 | J152: 0.1324785042 | K152: 0.1078925925 | L152: 0.06451533449 | M152: 0.0107198954 | N152: 0.001488918552 | O152: 0.1087118982 | P152: 1.000002785
A153: 10 | B153: 10V1 | D153: V1 | E153: 0.02003445486 | F153: 0.07816352156 | G153: 0.05048830905 | H153: 0.1805392307 | I153: 0.1786848824 | J153: 0.1332960892 | K153: 0.1152263479 | L153: 0.07266414564 | M153: 0.01256613742 | N153: 0.00178838956 | O153: 0.1565528097 | P153: 1.000004318
A154: 10 | B154: 10V2 | D154: V2 | E154: 0.01495694568 | F154: 0.06031926115 | G154: 0.04078396436 | H154: 0.1520170744 | I154: 0.1614435495 | J154: 0.1299017641 | K154: 0.1193716949 | L154: 0.07930448932 | M154: 0.01424901188 | N154: 0.002074487987 | O154: 0.2255845813 | P154: 1.000006825
A155: 10 | B155: 10R1 | D155: R1 | E155: 0.01128463154 | F155: 0.04663235236 | G155: 0.03273507554 | H155: 0.1264637899 | I155: 0.1424426126 | J155: 0.1216014294 | K155: 0.1169697157 | L155: 0.08071309337 | M155: 0.01490970064 | N155: 0.002206299464 | O155: 0.3040513334 | P155: 1.000010034
A156: 10 | B156: 10R2 | D156: R2 | E156: 0.008010362209 | F156: 0.03383005086 | G156: 0.02461257794 | H156: 0.0984790896 | I156: 0.1172829004 | J156: 0.105603499 | K156: 0.105729822 | L156: 0.07540547454 | M156: 0.01427389951 | N156: 0.002142787868 | O156: 0.4146516827 | P156: 1.000022147
A157: 10 | B157: 10R3 | D157: R3 | E157: 0.004995889954 | F157: 0.02146705472 | G157: 0.01610718251 | H157: 0.06651108262 | I157: 0.08320229894 | J157: 0.07841303869 | K157: 0.0812335767 | L157: 0.05961772085 | M157: 0.01153545888 | N157: 0.001754447865 | O157: 0.575174491 | P157: 1.000012243
A158: 10 | B158: 10R4 | D158: R4 | E158: 0.003531964212 | F158: 0.01526043115 | G158: 0.01156441783 | H158: 0.04824649911 | I158: 0.06132210597 | J158: 0.05864593737 | K158: 0.06143580557 | L158: 0.04552432081 | M158: 0.008876447714 | N158: 0.001356343864 | O158: 0.6842445198 | P158: 1.000008793
D159: Default | E159: 0 | F159: 0 | G159: 0 | H159: 0 | I159: 0 | J159: 0 | K159: 0 | L159: 0 | M159: 0 | N159: 0 | O159: 1 | P159: 1
D162: PD CUMULATE
D163: Anno 1 | E163: Scadenza
D164: Rating al tempo t | E164: 1 | F164: 2 | G164: 3 | H164: 4 | I164: 5 | J164: 6 | K164: 7 | L164: 8 | M164: 9 | N164: 10
D165: SICUREZZA ELEVATA | E165: =O5 -> 4.5625e-05 | F165: =O21 -> 0.0009581088399 | G165: =O37 -> 0.003134322127 | H165: =O53 -> 0.006887153437 | I165: =O69 -> 0.0123915706 | J165: =O85 -> 0.01968197851 | K165: =O101 -> 0.0286795797 | L165: =O117 -> 0.03922888353 | M165: =O133 -> 0.05113166012 | N165: =O149 -> 0.06417360153
D166: SICUREZZA ELEVATA | E166: 0.000301484 | F166: 0.00165223968 | G166: 0.004472498611 | H166: 0.009067988692 | I166: 0.0155665622 | J166: 0.02393276108 | K166: 0.03401535627 | L166: 0.04559795062 | M166: 0.05843916947 | N166: 0.0722995944
D167: SOLVIBILITA' ELEVATA | E167: 0.000907003 | F167: 0.003189354949 | G167: 0.007333199323 | H167: 0.01356260724 | I167: 0.02186135898 | J167: 0.03204453294 | K167: 0.0438417349 | L167: 0.05695941242 | M167: 0.07111747156 | N167: 0.08606657495
D168: SOLVIBILITA' | E168: 0.0023247 | F168: 0.006862147515 | G168: 0.01382169825 | H168: 0.02311683203 | I168: 0.03443767098 | J168: 0.0473927749 | K168: 0.06160026809 | L168: 0.07672811286 | M168: 0.09250410216 | N168: 0.1087118982
D169: VULNERABILITA' | E169: 0.0070015 | F169: 0.01755918577 | G169: 0.03134449345 | H169: 0.04741571215 | I169: 0.06488269984 | J169: 0.08308377027 | K169: 0.1015776691 | L169: 0.1200872162 | M169: 0.1384449201 | N169: 0.1565528097
D170: VULNERABILITA' ELEVATA | E170: 0.0165586 | F170: 0.03917841477 | G170: 0.06456079756 | H170: 0.09054271639 | I170: 0.1159600989 | J170: 0.1402947089 | K170: 0.1633823147 | L170: 0.1852323132 | M170: 0.2059295531 | N170: 0.2255845813
D171: RISCHIO | E171: 0.0372315 | F171: 0.07782944753 | G171: 0.1168102772 | H171: 0.1524018789 | I171: 0.1843769708 | J171: 0.2130720114 | K171: 0.2389615019 | L171: 0.2625028357 | M171: 0.2840906765 | N171: 0.3040513334
D172: RISCHIO ELEVATO | E172: 0.0877 | F172: 0.1585407941 | G172: 0.2142670283 | H172: 0.2587533495 | I172: 0.2952074051 | J172: 0.3258669673 | K172: 0.3522467935 | L172: 0.3753849712 | M172: 0.3960110383 | N172: 0.4146516827
D173: RISCHIO MOLTO ELEVATO | E173: 0.2055264 | F173: 0.3212223349 | G173: 0.3916599484 | H173: 0.4393203286 | I173: 0.474446077 | J173: 0.5019997712 | K173: 0.5246044286 | L173: 0.5437673086 | M173: 0.5604200258 | N173: 0.575174491
D174: RISCHIO MASSIMO | E174: 0.3407076 | F174: 0.4689836613 | G174: 0.5351942008 | H174: 0.5764388724 | I174: 0.6054225522 | J174: 0.6275021631 | K174: 0.6452777603 | L174: 0.6601561307 | M174: 0.672968912 | N174: 0.6842445198
D175: DEFAULT | E175: 1 | F175: 1 | G175: 1 | H175: 1 | I175: 1 | J175: 1 | K175: 1 | L175: 1 | M175: 1 | N175: 1
D178: PD MARGINALI
D179: Anno 1 | E179: Scadenza
D180: Rating al tempo t | E180: 1 | F180: 2 | G180: 3 | H180: 4 | I180: 5 | J180: 6 | K180: 7 | L180: 8 | M180: 9 | N180: 10
D181: SICUREZZA ELEVATA | E181: =E165 -> 4.5625e-05 | F181: =F165-E165 -> 0.0009124838399 | G181: 0.002176213287 | H181: 0.00375283131 | I181: 0.00550441716 | J181: 0.007290407916 | K181: 0.008997601187 | L181: 0.01054930383 | M181: 0.0119027766 | N181: 0.0130419414
D182: SICUREZZA ELEVATA | E182: 0.000301484 | F182: =F166-E166 -> 0.00135075568 | G182: 0.002820258931 | H182: 0.00459549008 | I182: 0.006498573513 | J182: 0.008366198872 | K182: 0.0100825952 | L182: 0.01158259435 | M182: 0.01284121885 | N182: 0.01386042493
D183: SOLVIBILITA' ELEVATA | E183: 0.000907003 | F183: =F167-E167 -> 0.002282351949 | G183: 0.004143844374 | H183: 0.006229407912 | I183: 0.008298751744 | J183: 0.01018317396 | K183: 0.01179720196 | L183: 0.01311767752 | M183: 0.01415805915 | N183: 0.01494910338
D184: SOLVIBILITA' | E184: 0.0023247 | F184: =F168-E168 -> 0.004537447515 | G184: 0.006959550734 | H184: 0.009295133782 | I184: 0.01132083895 | J184: 0.01295510392 | K184: 0.01420749319 | L184: 0.01512784476 | M184: 0.0157759893 | N184: 0.01620779609
D185: VULNERABILITA' | E185: 0.0070015 | F185: =F169-E169 -> 0.01055768577 | G185: 0.01378530768 | H185: 0.0160712187 | I185: 0.0174669877 | J185: 0.01820107043 | K185: 0.01849389885 | L185: 0.01850954704 | M185: 0.01835770393 | N185: 0.01810788966
D186: VULNERABILITA' ELEVATA | E186: 0.0165586 | F186: =F170-E170 -> 0.02261981477 | G186: 0.02538238279 | H186: 0.02598191884 | I186: 0.02541738249 | J186: 0.02433460998 | K186: 0.02308760585 | L186: 0.0218499985 | M186: 0.02069723993 | N186: 0.01965502821
D187: RISCHIO | E187: 0.0372315 | F187: =F171-E171 -> 0.04059794753 | G187: 0.03898082966 | H187: 0.03559160167 | I187: 0.03197509197 | J187: 0.02869504053 | K187: 0.02588949056 | L187: 0.02354133377 | M187: 0.0215878408 | N187: 0.01996065687
D188: RISCHIO ELEVATO | E188: 0.0877 | F188: =F172-E172 -> 0.07084079411 | G188: 0.05572623419 | H188: 0.04448632123 | I188: 0.03645405552 | J188: 0.03065956227 | K188: 0.02637982622 | L188: 0.02313817764 | M188: 0.02062606709 | N188: 0.01864064443
D189: RISCHIO MOLTO ELEVATO | E189: 0.2055264 | F189: =F173-E173 -> 0.1156959349 | G189: 0.07043761346 | H189: 0.04766038022 | I189: 0.03512574843 | J189: 0.02755369422 | K189: 0.02260465734 | L189: 0.01916288002 | M189: 0.01665271719 | N189: 0.01475446518
D190: RISCHIO MASSIMO | E190: 0.3407076 | F190: =F174-E174 -> 0.1282760613 | G190: 0.06621053942 | H190: 0.04124467163 | I190: 0.02898367977 | J190: 0.02207961092 | K190: 0.0177755972 | L190: 0.01487837047 | M190: 0.01281278123 | N190: 0.01127560781
D191: DEFAULT | E191: 1 | F191: =F175-E175 -> 0 | G191: 0 | H191: 0 | I191: 0 | J191: 0 | K191: 0 | L191: 0 | M191: 0 | N191: 0
